bitfinex/quotes_SOLUSD_20251030
["timestamp","ask_amount","ask_price","bid_price","bid_amount"]
[1761866438552,0.2,183.61,183.6,67.81662309]
[1761866439066,0.2,183.61,183.6,71.02513821]
[1761866443259,0.92,183.61,183.6,70.35513821]
[1761866443449,0.2,183.61,183.6,70.35513821]
[1761866443651,0.2,183.61,183.6,64.90851512]
[1761866443864,0.2,183.61,183.6,61.7]
[1761866444357,0.92,183.61,183.6,67.14662309]
[1761866444561,0.92,183.61,183.6,61.7]
[1761866446261,0.92,183.61,183.6,67.14662309]
[1761866447346,0.92,183.61,183.6,61.7]
[1761866447962,0.2,183.61,183.6,70.35513821]
[1761866448543,0.2,183.61,183.6,71.02513821]
[1761866450344,8.01675671,183.61,183.6,71.02513821]
[1761866450956,8.01675671,183.61,183.6,70.35513821]
[1761866451358,8.01675671,183.61,183.6,71.02513821]
[1761866453067,8.01675671,183.61,183.55,5.44810678]
[1761866453068,11.94527183,183.61,183.55,5.44810678]
[1761866453263,8.53675671,183.6,183.55,22.94688885]
[1761866453570,7.81675671,183.59,183.56,3.20851512]
[1761866453770,7.81675671,183.58,183.56,3.20851512]
[1761866454098,7.81675671,183.57,183.55,19.06837373]
[1761866454248,3.74392155,183.56,183.55,19.06837373]
[1761866454448,3.74392155,183.56,183.52,19.07149084]
[1761866454643,0.92,183.61,183.52,46.98647776]
[1761866454871,7.8356425,183.6,183.53,0.67]
[1761866455082,7.8356425,183.59,183.53,0.67]
[1761866455268,0.2,183.61,183.58,3.20851512]
[1761866455456,7.83402971,183.6,183.55,82.292]
[1761866455660,0.2,183.61,183.59,3.20851512]
[1761866455860,7.83391556,183.6,183.59,3.20851512]
[1761866456570,7.83391556,183.6,183.59,8.65543488]
[1761866457372,7.83391556,183.6,183.59,5.44691976]
[1761866457848,8.55391556,183.6,183.59,5.44691976]
[1761866458271,7.83391556,183.6,183.59,5.44691976]
[1761866458464,7.83391556,183.6,183.59,67.14691976]
[1761866458667,7.83391556,183.6,183.59,61.7]
[1761866459052,7.83391556,183.6,183.59,67.14691976]
[1761866459753,7.83391556,183.6,183.59,70.35543488]
[1761866459952,0.2,183.61,183.59,70.35543488]
[1761866460160,0.2,183.61,183.59,71.07543488]
[1761866460359,0.2,183.61,183.6,3.92851512]
[1761866460561,4.28155531,183.61,183.59,70.35543488]
[1761866460775,0.87,183.61,183.59,70.35543488]
[1761866461076,0.67,183.6,183.59,67.14691976]
[1761866461278,11.71268618,183.6,183.57,61.7]
[1761866461478,20.592,183.58,183.53,5.44870048]
[1761866461681,3.20851512,183.56,183.5,10.09950511]
[1761866461881,3.20851512,183.53,183.5,6.89098999]
[1761866462058,4.08344098,183.52,183.5,6.89098999]
[1761866462380,3.67219991,183.51,183.5,6.89098999]
[1761866462682,11.50591136,183.51,183.5,6.89098999]
[1761866462866,12.17591136,183.51,183.5,6.89098999]
[1761866463262,8.42261888,183.51,183.5,6.89098999]
[1761866463976,7.75261888,183.51,183.5,6.89098999]
[1761866464276,3.67219991,183.51,183.5,12.34058127]
[1761866464770,3.67219991,183.51,183.5,6.89098999]
[1761866465277,0.67,183.51,183.5,6.89098999]
[1761866466663,0.67,183.51,183.5,12.34058127]
[1761866467060,3.87851512,183.51,183.5,6.89098999]
[1761866467259,9.32780943,183.51,183.5,6.89098999]
[1761866467467,30.59030998,183.51,183.5,6.89098999]
[1761866467881,25.14101567,183.51,183.5,6.89098999]
[1761866468188,21.39825028,183.51,183.5,6.89098999]
[1761866468481,25.13875039,183.51,183.5,6.89098999]
[1761866469164,30.5880447,183.51,183.5,6.89098999]
[1761866470282,25.13875039,183.51,183.5,6.89098999]
[1761866470474,17.32993001,183.51,183.5,6.89098999]
[1761866470781,17.72832815,183.51,183.5,6.89098999]
[1761866470964,23.17762246,183.51,183.5,6.89098999]
[1761866471380,26.84020966,183.51,183.5,6.89098999]
[1761866472166,17.32993001,183.51,183.5,6.89098999]
[1761866472584,9.78882769,183.5,183.46,5.45069033]
[1761866472787,7.53036488,183.5,183.46,5.45069033]
[1761866472980,0.67,183.49,183.46,5.45069033]
[1761866473986,0.67,183.5,183.46,8.65920545]
[1761866474187,0.67,183.5,183.47,3.20851512]
[1761866474484,21.262,183.5,183.47,3.20851512]
[1761866474787,3.20851512,183.49,183.44,61.7]
[1761866474970,3.87851512,183.49,183.45,5.45104481]
[1761866475175,0.67,183.48,183.45,5.45104481]
[1761866475772,0.67,183.48,183.45,8.65955993]
[1761866476670,0.67,183.48,183.45,5.45104481]
[1761866476990,0.67,183.48,183.45,8.65955993]
[1761866478280,0.67,183.48,183.45,5.45104481]
[1761866478490,0.67,183.48,183.45,8.65955993]
[1761866481295,0.67,183.48,183.45,3.20851512]
[1761866481467,0.67,183.48,183.43,61.7]
[1761866481468,23.80051512,183.46,183.43,61.7]
[1761866481670,3.20851512,183.44,183.4,5.4525627]
[1761866481888,0.71,183.43,183.4,5.4525627]
[1761866482984,0.71,183.45,183.41,0.71]
[1761866483170,0.71,183.45,183.4,22.29248458]
[1761866483370,2.76808662,183.45,183.4,21.85205608]
[1761866484500,0.71,183.44,183.4,21.85205608]
[1761866484696,0.71,183.44,183.4,8.22064932]
[1761866484895,2.05808662,183.43,183.39,5.45279421]
[1761866485279,0.71,183.42,183.39,5.45279421]
[1761866486381,8.22005951,183.42,183.38,5.45308842]
[1761866486578,0.71,183.41,183.38,7.51117504]
[1761866486887,0.71,183.41,183.38,5.45308842]
[1761866488003,20.592,183.42,183.38,8.22117504]
[1761866488305,0.71,183.43,183.4,5.4525627]
[1761866488597,0.71,183.42,183.4,5.4525627]
[1761866490189,0.71,183.42,183.39,5.45286002]
[1761866490804,0.71,183.42,183.39,67.15286002]
[1761866491003,2.05808662,183.43,183.39,67.15286002]
[1761866491201,2.73808662,183.43,183.39,67.84286002]
[1761866491405,0.68,183.42,183.39,67.84286002]
[1761866492010,0.68,183.42,183.39,67.15286002]
[1761866493517,2.05808662,183.44,183.39,67.84286002]
[1761866493682,35.83206126,183.45,183.39,67.84286002]
[1761866493683,23.33008662,183.45,183.4,2.74808662]
[1761866493881,21.272,183.45,183.41,2.05808662]
[1761866494081,0.68,183.49,183.44,2.05808662]
[1761866494388,28.10027192,183.48,183.44,61.7]
[1761866494596,28.78027192,183.48,183.44,61.7]
[1761866494798,0.68,183.47,183.44,61.7]
[1761866495196,20.592,183.46,183.44,61.7]
[1761866496302,21.272,183.46,183.44,61.7]
[1761866499493,0.68,183.45,183.43,67.15142926]
[1761866502306,0.68,183.45,183.43,61.7]
[1761866503411,4.33402088,183.45,183.43,61.7]
[1761866504405,3.65402088,183.44,183.43,67.15167093]
[1761866504601,3.65402088,183.45,183.44,0.69]
[1761866504801,7.72235414,183.46,183.44,0.69]
[1761866505003,3.65402088,183.45,183.44,0.69]
[1761866505209,3.65402088,183.47,183.44,2.74808662]
[1761866505431,5.23238235,183.51,183.46,2.05808662]
[1761866505628,7.7304224,183.5,183.46,2.05808662]
[1761866505827,7.7304224,183.49,183.46,2.05808662]
[1761866506120,7.7304224,183.48,183.46,0.69]
[1761866506305,7.7304224,183.47,183.46,0.69]
[1761866507615,4.06826469,183.47,183.46,6.14077946]
[1761866508210,4.06826469,183.49,183.46,6.14077946]
[1761866508517,7.76599439,183.48,183.46,6.14077946]
[1761866508721,4.06826469,183.47,183.46,6.14077946]
[1761866508892,6.80635131,183.49,183.45,5.45099454]
[1761866509091,7.76559418,183.48,183.45,5.45099454]
[1761866509313,4.06826469,183.47,183.45,5.45099454]
[1761866509697,4.74826469,183.47,183.44,5.45137374]
[1761866510111,4.06826469,183.46,183.44,6.14137374]
[1761866510315,2.73808662,183.48,183.44,5.45137374]
[1761866510521,7.77712342,183.47,183.44,5.45137374]
[1761866510706,4.07746895,183.46,183.45,6.14107658]
[1761866511111,4.07746895,183.46,183.45,67.84107658]
[1761866511417,4.07746895,183.47,183.45,69.8991632]
[1761866511619,0.68,183.5,183.46,2.74808662]
[1761866511928,7.77867165,183.49,183.47,0.69]
[1761866512094,7.77867165,183.48,183.47,0.69]
[1761866512827,7.77867165,183.48,183.47,6.14048236]
[1761866513013,7.7804575,183.48,183.47,5.45048236]
[1761866514725,4.07936515,183.48,183.47,2.74808662]
[1761866514897,4.07936515,183.51,183.47,2.74808662]
[1761866515104,7.7802937,183.5,183.49,2.05808662]
[1761866515514,7.7802937,183.5,183.49,63.75808662]
[1761866515515,4.07936515,183.5,183.49,63.75808662]
[1761866515712,4.07936515,183.5,183.49,64.44808662]
[1761866516728,4.55238235,183.56,183.5,19.07356948]
[1761866516923,7.77775487,183.55,183.52,2.05808662]
[1761866517225,7.77775487,183.54,183.52,2.05808662]
[1761866517542,7.77775487,183.53,183.52,2.05808662]
[1761866517744,7.77775487,183.53,183.52,7.507084]
[1761866518102,7.77775487,183.53,183.52,8.197084]
[1761866518338,7.77775487,183.53,183.52,6.13899738]
[1761866518515,7.77775487,183.53,183.52,5.44899738]
[1761866518904,7.77775487,183.53,183.52,6.11899738]
[1761866519108,4.07831372,183.53,183.52,6.11899738]
[1761866519304,4.07831372,183.54,183.52,6.11899738]
[1761866519606,4.07831372,183.53,183.52,6.11899738]
[1761866519826,4.07831372,183.54,183.52,6.11899738]
[1761866520011,4.07831372,183.53,183.52,6.11899738]
[1761866520334,4.07520341,183.53,183.52,5.44899738]
[1761866520512,2.05808662,183.56,183.52,5.44899738]
[1761866520719,3.69625338,183.55,183.52,7.507084]
[1761866521032,3.69625338,183.54,183.53,0.67]
[1761866521236,3.69625338,183.54,183.52,5.44899738]
[1761866521405,2.05808662,183.56,183.52,6.11899738]
[1761866521600,3.69510068,183.55,183.53,0.67]
[1761866522013,2.05808662,183.57,183.53,0.67]
[1761866522214,3.69494184,183.56,183.53,0.67]
[1761866522832,3.69494184,183.56,183.54,5.44840361]
[1761866523008,3.69494184,183.56,183.54,61.7]
[1761866523326,5.75302846,183.56,183.54,61.7]
[1761866523524,3.69494184,183.55,183.54,61.7]
[1761866525129,2.05808662,183.55,183.54,61.7]
[1761866525342,16.24185615,183.55,183.54,61.7]
[1761866526832,15.54185615,183.55,183.54,61.7]
[1761866527336,20.98996293,183.55,183.54,61.7]
[1761866528221,3.69494184,183.55,183.54,61.7]
[1761866528410,3.69494184,183.55,183.54,67.81840361]
[1761866528612,20.592,183.56,183.54,67.81840361]
[1761866530928,20.592,183.56,183.55,0.67]
[1761866531127,0.2,183.61,183.55,2.72808662]
[1761866531335,0.2,183.61,183.55,64.42808662]
[1761866531336,11.84691431,183.6,183.55,64.42808662]
[1761866531536,3.68788737,183.59,183.55,64.42808662]
[1761866532532,3.68788737,183.59,183.56,5.44780998]
[1761866532738,2.25808662,183.61,183.56,67.81780998]
[1761866533030,4.06392804,183.6,183.57,0.67]
[1761866533216,2.25808662,183.61,183.57,0.67]
[1761866533947,0.2,183.61,183.57,0.67]
[1761866534125,0.2,183.61,183.58,2.05808662]
[1761866534537,0.2,183.61,183.59,6.11691976]
[1761866534726,0.2,183.61,183.59,67.81691976]
[1761866535043,0.7,183.6,183.59,61.7]
[1761866535249,2.05808662,183.6,183.59,61.7]
[1761866538235,2.25808662,183.61,183.59,61.7]
[1761866539159,20.792,183.61,183.6,0.72]
[1761866539527,0.2,183.61,183.6,0.72]
[1761866539843,0.2,183.61,183.59,61.7]
[1761866540033,0.2,183.61,183.59,62.42]
[1761866540437,0.2,183.61,183.59,0.72]
[1761866543483,4.12017841,183.61,183.57,0.72]
[1761866543687,3.21017841,183.58,183.55,6.36579608]
[1761866543852,3.21017841,183.57,183.55,72.79360967]
[1761866544199,3.21017841,183.59,183.56,0.72]
[1761866544348,3.21017841,183.6,183.56,0.72]
[1761866544546,24.00217841,183.61,183.56,3.93017841]
[1761866544761,24.00217841,183.61,183.56,65.63017841]
[1761866544961,24.00217841,183.61,183.57,0.72]
[1761866546072,24.71217841,183.61,183.57,0.72]
[1761866546369,3.21017841,183.6,183.56,61.7]
[1761866546558,3.21017841,183.59,183.56,61.7]
[1761866546873,3.21017841,183.59,183.56,62.42]
[1761866549481,3.21017841,183.59,183.56,6.16777849]
[1761866549683,3.21017841,183.59,183.56,0.72]
[1761866551480,12.9990061,183.6,183.56,6.16769685]
[1761866551874,12.9990061,183.6,183.57,0.71]
[1761866552185,12.9990061,183.6,183.56,5.44769685]
[1761866552186,12.9990061,183.6,183.56,6.15769685]
[1761866552770,13.7190061,183.6,183.56,6.15769685]
[1761866552967,3.21017841,183.59,183.56,6.15769685]
[1761866553167,3.93017841,183.59,183.55,5.44801742]
[1761866553780,3.93017841,183.59,183.55,6.15801742]
[1761866553967,3.21017841,183.59,183.56,0.71]
[1761866555067,3.21017841,183.59,183.56,67.85771372]
[1761866555462,3.21017841,183.59,183.56,67.14771372]
[1761866555670,3.21017841,183.59,183.56,67.85771372]
[1761866556078,3.21017841,183.58,183.56,67.85771372]
[1761866556478,3.21017841,183.58,183.56,61.7]
[1761866557677,3.21017841,183.59,183.56,67.85771673]
[1761866557872,3.21017841,183.6,183.56,67.14771673]
[1761866558077,20.792,183.61,183.57,0.71]
[1761866558284,11.01301152,183.6,183.57,6.15732842]
[1761866558490,3.21017841,183.6,183.57,6.15732842]
[1761866558695,3.21017841,183.6,183.58,0.71]
[1761866558990,3.21017841,183.6,183.56,67.14776165]
[1761866559488,4.07206706,183.59,183.57,0.71]
[1761866559890,13.7190061,183.58,183.54,61.7]
[1761866560189,3.21017841,183.56,183.54,61.7]
[1761866560589,3.21017841,183.56,183.53,67.85847027]
[1761866561391,3.21017841,183.56,183.54,0.71]
[1761866562086,11.74245013,183.55,183.5,68.59098999]
[1761866562294,3.21017841,183.51,183.5,6.89098999]
[1761866562487,20.81451676,183.51,183.5,6.89098999]
[1761866562996,11.02568907,183.51,183.5,7.60098999]
[1761866563390,7.81551066,183.51,183.5,7.60098999]
[1761866563692,7.81551066,183.51,183.5,6.89098999]
[1761866564494,7.81551066,183.51,183.5,7.60098999]
[1761866565587,4.07638665,183.51,183.5,7.60098999]
[1761866565783,4.07638665,183.52,183.5,7.60098999]
[1761866565990,4.07638665,183.51,183.5,7.60098999]
[1761866566183,4.07638665,183.52,183.5,7.60098999]
[1761866566388,4.07638665,183.51,183.5,7.60098999]
[1761866566782,7.81359405,183.51,183.5,7.60098999]
[1761866567291,7.81359405,183.51,183.5,6.89098999]
[1761866567890,4.07638665,183.51,183.5,6.89098999]
[1761866568475,21.50612427,183.51,183.5,6.89098999]
[1761866569098,20.78612427,183.51,183.5,6.89098999]
[1761866569292,7.78711817,183.51,183.5,7.60098999]
[1761866569593,7.78711817,183.51,183.5,6.89098999]
[1761866569778,7.78711817,183.51,183.5,7.60098999]
[1761866570497,3.21017841,183.53,183.5,7.60098999]
[1761866570689,10.99046506,183.52,183.5,7.60098999]
[1761866570996,4.07129873,183.51,183.5,7.60098999]
[1761866571200,3.21017841,183.52,183.5,6.89098999]
[1761866574501,3.21017841,183.51,183.5,6.89098999]
[1761866574883,7.27968829,183.51,183.5,6.89098999]
[1761866575393,3.21017841,183.51,183.5,6.89098999]
[1761866576304,7.27845197,183.51,183.5,6.89098999]
[1761866576489,3.21017841,183.51,183.5,6.89098999]
[1761866576898,3.21017841,183.52,183.5,6.89098999]
[1761866577803,8.65920728,183.52,183.5,6.89098999]
[1761866577979,3.21017841,183.51,183.5,6.89098999]
[1761866578705,3.21017841,183.51,183.5,7.57098999]
[1761866579097,3.21017841,183.52,183.5,7.57098999]
[1761866580799,3.21017841,183.53,183.5,12.34052212]
[1761866581003,20.592,183.52,183.5,6.89098999]
[1761866581305,23.80217841,183.52,183.5,7.57098999]
[1761866582212,3.21017841,183.51,183.5,6.89098999]
[1761866582516,10.98352659,183.51,183.5,6.89098999]
[1761866583295,7.77334818,183.51,183.5,7.57098999]
[1761866583498,3.21017841,183.53,183.5,13.02058127]
[1761866583703,3.21017841,183.53,183.51,0.68]
[1761866584215,3.21017841,183.53,183.5,7.57098999]
[1761866584714,3.21017841,183.53,183.5,69.27098999]
[1761866586227,8.6589651,183.53,183.5,69.27098999]
[1761866586414,8.6589651,183.53,183.5,68.59098999]
[1761866586415,7.97782491,183.52,183.5,68.59098999]
[1761866586615,3.21017841,183.51,183.5,68.59098999]
[1761866588920,3.21017841,183.52,183.5,69.27098999]
[1761866590415,3.21017841,183.52,183.5,7.57098999]
[1761866591627,8.6591977,183.52,183.5,7.57098999]
[1761866591828,8.6591977,183.52,183.5,6.89098999]
[1761866592033,3.21017841,183.51,183.5,6.89098999]
[1761866593140,3.21017841,183.52,183.5,7.57098999]
[1761866594146,3.21017841,183.52,183.5,13.02057657]
[1761866594326,20.592,183.53,183.51,0.68]
[1761866594724,14.34121004,183.57,183.51,0.68]
[1761866595040,37.02942923,183.56,183.52,5.44899738]
[1761866595219,7.77942893,183.55,183.52,5.44899738]
[1761866595418,29.2500003,183.56,183.52,5.44899738]
[1761866595419,7.77942893,183.54,183.53,0.68]
[1761866595622,20.592,183.54,183.53,0.68]
[1761866595836,23.80217841,183.54,183.5,68.59098999]
[1761866596053,3.21017841,183.52,183.5,68.59098999]
[1761866596236,8.47071474,183.53,183.5,68.59098999]
[1761866596237,3.21017841,183.51,183.5,68.59098999]
[1761866596548,3.21017841,183.51,183.5,6.89098999]
[1761866597257,7.28281548,183.51,183.5,6.89098999]
[1761866599259,10.9662064,183.51,183.5,6.89098999]
[1761866600249,7.75602799,183.51,183.5,7.55098999]
[1761866600432,4.07263707,183.51,183.5,7.55098999]
[1761866601451,7.28281548,183.51,183.5,6.89098999]
[1761866601666,3.21017841,183.51,183.5,6.89098999]
[1761866601867,4.07802552,183.51,183.5,6.89098999]
[1761866602182,4.07802552,183.51,183.5,69.25098999]
[1761866602387,7.76524405,183.52,183.5,74.70058127]
[1761866602588,11.43610999,183.51,183.5,74.04058127]
[1761866602887,11.43610999,183.51,183.5,15.55075968]
[1761866602888,7.74889146,183.51,183.5,15.55075968]
[1761866603100,4.07802552,183.51,183.5,77.91075968]
[1761866603248,3.67069627,183.56,183.5,104.53374398]
[1761866603549,0.89,183.61,183.52,5.44899738]
[1761866603550,4.07908095,183.55,183.52,5.44899738]
[1761866603755,0.2,183.61,183.52,19.07149084]
[1761866604077,3.68569877,183.6,183.53,0.66]
[1761866604293,3.68569877,183.59,183.53,0.66]
[1761866604456,3.68569877,183.58,183.53,0.66]
[1761866604657,3.41017841,183.61,183.56,3.21017841]
[1761866604857,3.68597529,183.6,183.56,3.21017841]
[1761866605149,3.68597529,183.59,183.57,0.66]
[1761866605370,3.68597529,183.58,183.57,0.66]
[1761866605569,0.2,183.61,183.57,6.10737988]
[1761866605774,3.68533631,183.6,183.57,6.10737988]
[1761866605947,3.68533631,183.59,183.58,0.66]
[1761866606151,3.68533631,183.6,183.58,0.66]
[1761866606353,3.68533631,183.59,183.58,0.66]
[1761866606861,0.2,183.61,183.58,6.10721647]
[1761866607062,3.88403009,183.61,183.58,6.10721647]
[1761866607267,3.88403009,183.61,183.59,0.66]
[1761866608777,3.88403009,183.61,183.59,6.10691743]
[1761866609279,0.2,183.61,183.59,6.10691743]
[1761866609584,0.2,183.61,183.59,0.66]
[1761866609781,5.93271079,183.61,183.59,0.66]
[1761866609986,2.25443644,183.61,183.59,0.66]
[1761866610764,2.25443644,183.61,183.57,6.10748333]
[1761866611081,2.25443644,183.61,183.58,0.66]
[1761866611585,2.25443644,183.61,183.58,6.10711462]
[1761866613770,2.25443644,183.61,183.58,62.36]
[1761866614486,7.70079081,183.61,183.58,61.7]
[1761866614670,2.74443644,183.6,183.58,61.7]
[1761866615389,6.80871631,183.59,183.58,61.7]
[1761866615602,6.11871631,183.59,183.58,61.7]
[1761866615801,6.11871631,183.59,183.58,67.80721647]
[1761866615802,4.06427987,183.59,183.58,67.80721647]
[1761866616005,4.06427987,183.59,183.58,69.86165291]
[1761866616298,4.06427987,183.59,183.58,67.80721647]
[1761866616502,4.06427987,183.59,183.58,62.36]
[1761866616713,4.06427987,183.59,183.58,67.80721647]
[1761866617994,4.06427987,183.59,183.58,69.86165291]
[1761866618307,4.06252506,183.59,183.58,69.86165291]
[1761866618689,0.2,183.61,183.58,8.16165291]
[1761866618886,4.06189556,183.6,183.59,0.66]
[1761866619882,4.06189556,183.6,183.59,8.1613562]
[1761866620088,0.2,183.61,183.59,8.1613562]
[1761866620390,0.2,183.61,183.6,2.71443644]
[1761866620608,0.2,183.61,183.6,64.41443644]
[1761866620914,0.2,183.61,183.6,62.36]
[1761866621097,0.2,183.61,183.6,64.41443644]
[1761866621411,2.25443644,183.61,183.59,4.06189556]
[1761866621585,36.49399725,183.6,183.55,0.66]
[1761866621786,2.05443644,183.58,183.55,0.66]
[1761866621988,4.05873312,183.57,183.55,0.66]
[1761866622211,2.05443644,183.58,183.55,0.66]
[1761866622411,4.06013223,183.57,183.55,0.66]
[1761866622612,2.05443644,183.58,183.54,5.44833485]
[1761866622793,4.06013263,183.57,183.54,6.10833485]
[1761866623106,2.05443644,183.58,183.55,0.66]
[1761866623310,4.06013303,183.57,183.55,2.71443644]
[1761866623500,22.64643644,183.6,183.55,2.71443644]
[1761866623700,4.06019304,183.59,183.56,2.71443644]
[1761866623902,2.05443644,183.6,183.56,0.66]
[1761866624213,4.05984088,183.59,183.57,6.10751321]
[1761866624391,2.05443644,183.6,183.57,6.10751321]
[1761866624594,4.05967164,183.59,183.58,0.66]
[1761866627314,6.11410808,183.59,183.56,19.72873607]
[1761866627514,2.05443644,183.59,183.57,0.66]
[1761866627807,2.05443644,183.6,183.57,0.66]
[1761866628005,4.05979632,183.59,183.57,0.66]
[1761866628202,2.05443644,183.6,183.57,0.66]
[1761866628409,4.06020534,183.59,183.57,0.66]
[1761866628598,2.05443644,183.6,183.57,0.66]
[1761866628796,4.06020574,183.59,183.57,4.72020534]
[1761866629008,2.05443644,183.6,183.57,4.72020534]
[1761866629316,4.06020574,183.59,183.58,0.66]
[1761866629512,6.11464218,183.59,183.54,15.67544548]
[1761866629710,4.06020574,183.58,183.57,0.66]
[1761866630112,4.06020574,183.58,183.57,64.41443644]
[1761866630325,0.2,183.61,183.57,64.41443644]
[1761866630617,0.2,183.61,183.6,2.05443644]
[1761866630811,0.2,183.61,183.6,64.41443644]
[1761866631314,0.2,183.61,183.6,24.53884034]
[1761866635396,0.2,183.63,183.6,101.90983451]
[1761866635701,0.2,183.69,183.6,101.90983451]
[1761866635702,0.2,183.69,183.66,20.592]
[1761866636031,0.2,183.69,183.68,4.10887288]
[1761866636409,0.2,183.69,183.68,4.76887288]
[1761866637529,0.2,183.69,183.68,10.21312375]
[1761866637696,0.1,183.73,183.68,10.21312375]
[1761866637697,0.1,183.73,183.69,0.66]
[1761866637905,0.1,183.73,183.72,2.05443644]
[1761866638207,0.1,183.73,183.72,63.75443644]
[1761866638520,0.1,183.73,183.72,66.59635379]
[1761866639419,0.1,183.73,183.72,72.03941932]
[1761866640915,0.1,183.73,183.72,69.98498288]
[1761866641121,0.1,183.73,183.72,72.03941932]
[1761866642907,0.2,183.75,183.73,61.6]
[1761866643101,0.2,183.75,183.74,2.05443644]
[1761866643294,0.2,183.75,183.74,2.72443644]
[1761866643494,0.2,183.75,183.74,8.16690949]
[1761866644205,0.2,183.76,183.74,8.16690949]
[1761866644408,0.2,183.76,183.75,2.72443644]
[1761866644819,0.1,183.77,183.75,64.32443644]
[1761866645012,0.1,183.77,183.76,2.72443644]
[1761866645709,0.1,183.77,183.76,69.76631715]
[1761866645909,0.1,183.77,183.76,71.94775853]
[1761866647828,0.1,183.77,183.76,69.09631715]
[1761866648024,0.1,183.77,183.76,5.44188071]
[1761866648322,0.1,183.77,183.76,8.16631715]
[1761866649603,0.1,183.77,183.76,10.34787751]
[1761866652020,0.1,183.77,183.76,71.94787751]
[1761866653718,1e-08,183.77,183.76,80.70981134]
[1761866653913,0.2,183.8,183.79,61.19999999]
[1761866654215,0.2,183.8,183.79,63.25443643]
[1761866655118,0.2,183.8,183.79,63.92443643]
[1761866655708,0.88,183.8,183.79,68.69542886]
[1761866655931,0.2,183.8,183.79,68.69542886]
[1761866656432,0.2,183.8,183.79,66.64099242]
[1761866656630,0.2,183.8,183.79,68.69542886]
[1761866662137,2.93443644,183.8,183.77,61.19999999]
[1761866662441,2.05443644,183.78,183.73,7.49720572]
[1761866662642,2.05443644,183.78,183.73,68.69720571]
[1761866662643,4.02007246,183.77,183.73,68.69720571]
[1761866662950,4.02007246,183.76,183.73,68.69720571]
[1761866663119,0.68,183.77,183.73,68.69720571]
[1761866663453,4.02174657,183.76,183.73,68.69720571]
[1761866663665,0.68,183.77,183.73,68.69720571]
[1761866663955,4.02303779,183.76,183.73,68.69720571]
[1761866664133,2.05443644,183.79,183.73,80.24969247]
[1761866664319,4.02297434,183.78,183.74,2.05443644]
[1761866664639,0.68,183.79,183.76,2.05443644]
[1761866664831,4.02374757,183.78,183.76,2.05443644]
[1761866665032,0.68,183.79,183.76,2.05443644]
[1761866665236,4.02372791,183.78,183.76,2.05443644]
[1761866665538,0.68,183.79,183.75,3.20322386]
[1761866665719,4.02463209,183.78,183.75,3.20322386]
[1761866665914,7.22785595,183.77,183.73,66.64276927]
[1761866666145,3.20322386,183.77,183.73,66.64276927]
[1761866666321,4.70491253,183.76,183.73,69.84599313]
[1761866666521,4.70491253,183.76,183.74,3.20322386]
[1761866666522,0.68,183.76,183.74,3.20322386]
[1761866666921,0.68,183.78,183.74,3.20322386]
[1761866667241,0.2,183.8,183.77,3.20322386]
[1761866667416,4.02776624,183.79,183.78,3.20322386]
[1761866667614,4.02776624,183.79,183.78,3.92322386]
[1761866667839,0.2,183.8,183.78,65.12322385]
[1761866668047,0.2,183.8,183.79,3.20322386]
[1761866668225,4.2272311,183.8,183.79,8.64421629]
[1761866668417,0.2,183.8,183.79,9.36421629]
[1761866669543,4.23135312,183.8,183.79,8.64421629]
[1761866672552,4.23135312,183.8,183.79,69.84421628]
[1761866673732,4.23135312,183.8,183.79,70.54421628]
[1761866675126,4.23135312,183.8,183.79,69.84421628]
[1761866677061,4.23135312,183.8,183.79,70.54421628]
[1761866683752,4.23135312,183.8,183.79,66.64099242]
[1761866683961,8.07329007,183.8,183.79,69.84421628]
[1761866684272,8.07329007,183.8,183.79,66.64099242]
[1761866684754,8.07329007,183.8,183.79,69.84421628]
[1761866686374,4.23135312,183.8,183.79,69.84421628]
[1761866686769,8.07503152,183.8,183.79,69.84421628]
[1761866686966,8.79503152,183.8,183.79,61.19999999]
[1761866687554,8.07503152,183.8,183.79,61.19999999]
[1761866689572,4.23135312,183.8,183.79,66.64099242]
[1761866689977,4.23135312,183.8,183.79,5.44099243]
[1761866690278,8.06486783,183.8,183.79,5.44099243]
[1761866690678,8.06486783,183.8,183.78,8.64445168]
[1761866690882,4.03135312,183.79,183.78,8.64445168]
[1761866692077,4.03135312,183.79,183.78,9.34445168]
[1761866693269,4.03135312,183.79,183.78,8.64445168]